bitfinex/quotes_BTCUSD_20241107
["timestamp","ask_amount","ask_price","bid_price","bid_amount"]
[1730986886581,0.002,74711.0,74710.0,0.12509397]
[1730986886793,0.005,74712.0,74710.0,0.12509397]
[1730986887018,0.005,74711.0,74710.0,0.12509397]
[1730986888170,0.007,74711.0,74710.0,0.12509397]
[1730986888982,0.0554,74711.0,74710.0,0.12509397]
[1730986889800,0.057062,74711.0,74710.0,0.12509397]
[1730986889943,0.055062,74711.0,74710.0,0.12509397]
[1730986891970,0.0937,74707.0,74706.0,0.000831]
[1730986895053,0.1391,74707.0,74706.0,0.000831]
[1730986895287,0.1441,74707.0,74706.0,0.000831]
[1730986895521,0.27634102,74707.0,74706.0,0.000831]
[1730986898052,0.28034102,74707.0,74706.0,0.000831]
[1730986898284,0.28434102,74707.0,74706.0,0.000831]
[1730986900064,0.38934102,74707.0,74706.0,0.000831]
[1730986900284,0.005,74686.0,74683.0,0.05517182]
[1730986900501,0.002,74680.0,74650.0,0.12509397]
[1730986900743,0.002,74680.0,74679.0,0.12592497]
[1730986901179,0.007,74682.0,74679.0,0.12592497]
[1730986901400,0.005,74680.0,74679.0,0.12592497]
[1730986901612,0.015,74680.0,74679.0,0.12592497]
[1730986903415,0.01,74680.0,74679.0,0.12592497]
[1730986904430,0.015,74680.0,74679.0,0.000831]
[1730986904964,0.01,74680.0,74679.0,0.000831]
[1730986905199,0.015,74680.0,74679.0,0.000831]
[1730986906150,0.017,74680.0,74679.0,0.000831]
[1730986906601,0.0933,74680.0,74679.0,0.000831]
[1730986908747,0.0883,74680.0,74679.0,0.000831]
[1730986910346,0.0933,74680.0,74679.0,0.000831]
[1730986910555,0.1426,74680.0,74679.0,0.000831]
[1730986910757,0.27484102,74680.0,74679.0,0.000831]
[1730986917433,0.40782512,74680.0,74679.0,0.000831]
[1730986917665,0.38984102,74680.0,74679.0,0.000831]
[1730986919426,0.38984102,74680.0,74658.0,0.05416324]
[1730986919427,0.012,74659.0,74658.0,0.05416324]
[1730986919628,0.012,74659.0,74657.0,0.00141273]
[1730986919629,0.002,74658.0,74657.0,0.00141273]
[1730986919844,0.002,74658.0,74657.0,0.05564007]
[1730986919987,0.007,74658.0,74657.0,0.00141273]
[1730986921578,0.007,74658.0,74657.0,0.00131226]
[1730986922002,0.012,74658.0,74657.0,0.00131226]
[1730986924498,0.01,74658.0,74657.0,0.00131226]
[1730986924705,0.0469,74662.0,74657.0,0.00131226]
[1730986924706,0.005,74662.0,74657.0,0.00131226]
[1730986924923,0.005,74667.0,74661.0,0.12509397]
[1730986925122,0.20032051,74666.0,74662.0,0.00267841]
[1730986925327,0.0833,74671.0,74659.0,0.0456]
[1730986925328,0.002,74671.0,74659.0,0.0456]
[1730986925610,0.20032051,74669.0,74659.0,0.0456]
[1730986925796,0.20032051,74669.0,74668.0,0.12509397]
[1730986926197,0.005,74670.0,74668.0,0.12509397]
[1730986926426,0.007,74671.0,74668.0,0.12509397]
[1730986926620,0.005,74669.0,74668.0,0.12509397]
[1730986927459,0.005,74675.0,74668.0,0.12509397]
[1730986927707,0.20032051,74674.0,74660.0,0.023]
[1730986927914,0.005,74677.0,74673.0,0.12509397]
[1730986928113,0.20532051,74675.0,74673.0,0.12509397]
[1730986928320,0.005,74675.0,74673.0,0.12509397]
[1730986928862,0.002,74671.0,74667.0,0.12509397]
[1730986929066,0.005,74669.0,74661.0,0.12509397]
[1730986929290,0.002,74658.0,74653.0,0.12509397]
[1730986929448,0.005,74662.0,74657.0,0.05503731]
[1730986929449,0.005,74661.0,74657.0,0.05503731]
[1730986929648,0.005,74661.0,74658.0,0.01250472]
[1730986929896,0.005,74661.0,74659.0,0.01250472]
[1730986930246,0.005,74661.0,74660.0,0.01250472]
[1730986930861,0.005,74661.0,74659.0,0.12509397]
[1730986931091,0.005,74661.0,74660.0,0.01250714]
[1730986931517,0.012,74661.0,74660.0,0.01250714]
[1730986931730,0.01,74661.0,74660.0,0.01250714]
[1730986932723,0.012,74661.0,74660.0,0.01250714]
[1730986932925,0.0939,74661.0,74660.0,0.01250714]
[1730986934381,0.002,74658.0,74657.0,0.00131226]
[1730986934608,0.002,74658.0,74657.0,0.01382214]
[1730986934829,0.002,74658.0,74657.0,0.03383816]
[1730986935077,0.007,74658.0,74657.0,0.03383816]
[1730986935258,0.017,74658.0,74657.0,0.03383816]
[1730986935881,0.017,74658.0,74657.0,0.01382214]
[1730986939298,0.017,74658.0,74657.0,0.01382214]
[1730986941521,0.017,74658.0,74657.0,0.00131226]
[1730986941701,0.017,74658.0,74657.0,0.01382719]
[1730986944357,0.017,74658.0,74657.0,0.00131226]
[1730986944588,0.017,74658.0,74657.0,0.013827]
[1730986944785,0.0637,74658.0,74657.0,0.013827]
[1730986945227,0.0637,74658.0,74657.0,0.01382757]
[1730986945397,0.0637,74658.0,74657.0,0.01382732]
[1730986946170,0.0637,74658.0,74657.0,0.00131226]
[1730986946365,0.27644102,74658.0,74657.0,0.00131226]
[1730986947658,0.27744102,74658.0,74657.0,0.00131226]
[1730986947843,0.27644102,74658.0,74657.0,0.00131226]
[1730986948496,0.38144102,74658.0,74657.0,0.00131226]
[1730986948698,0.38244102,74658.0,74657.0,0.00131226]
[1730986949120,0.38710502,74658.0,74657.0,0.00131226]
[1730986949330,0.38310502,74658.0,74657.0,0.00131226]
[1730986949570,0.39010502,74658.0,74657.0,0.00131226]
[1730986949776,0.39710502,74658.0,74657.0,0.00131226]
[1730986949948,0.38310502,74658.0,74657.0,0.00131226]
[1730986950150,0.38810502,74658.0,74657.0,0.00131226]
[1730986950396,0.40010502,74658.0,74657.0,0.00131226]
[1730986951291,0.39510502,74658.0,74657.0,0.00131226]
[1730986952199,0.216164,74658.0,74657.0,0.00131226]
[1730986954829,0.34840502,74658.0,74657.0,0.00131226]
[1730986955459,0.40170502,74658.0,74657.0,0.00131226]
[1730986958141,0.41170502,74658.0,74657.0,0.00131226]
[1730986959590,0.45137034,74658.0,74657.0,0.00131226]
[1730986959926,0.41170502,74658.0,74657.0,0.00131226]
[1730986961499,0.47119505,74658.0,74657.0,0.00131226]
[1730986961734,0.65354448,74658.0,74657.0,0.00131226]
[1730986961931,0.75469484,74658.0,74657.0,0.00131226]
[1730986962132,0.65554448,74658.0,74657.0,0.00131226]
[1730986962390,0.75469484,74658.0,74657.0,0.00131226]
[1730986962511,0.75269484,74658.0,74657.0,0.00131226]
[1730986962719,0.75469484,74658.0,74657.0,0.00131226]
[1730986963131,0.65554448,74658.0,74657.0,0.00131226]
[1730986963335,0.75469484,74658.0,74657.0,0.00131226]
[1730986964003,0.017,74632.0,74616.0,0.0491]
[1730986964238,0.1003,74632.0,74616.0,0.0491]
[1730986964854,0.23254102,74632.0,74626.0,0.0532828]
[1730986965203,0.23254102,74632.0,74616.0,0.0491]
[1730986966943,0.23254102,74632.0,74622.0,0.05326103]
[1730986968953,0.23254102,74632.0,74631.0,0.00141481]
[1730986969438,0.002,74619.0,74615.0,0.12509397]
[1730986969651,0.005,74613.0,74604.0,0.00419624]
[1730986969797,0.007,74613.0,74604.0,0.001516]
[1730986970006,0.005,74618.0,74612.0,0.05647796]
[1730986970204,0.005,74618.0,74615.0,0.12509397]
[1730986971171,0.005,74616.0,74615.0,0.12509397]
[1730986972168,0.005,74615.0,74612.0,0.001514]
[1730986972398,0.005,74613.0,74612.0,0.001514]
[1730986973997,0.007,74613.0,74612.0,0.001514]
[1730986975898,0.005,74613.0,74612.0,0.001514]
[1730986976462,0.005,74615.0,74612.0,0.001514]
[1730986976663,0.20032051,74613.0,74612.0,0.001514]
[1730986976862,0.005,74615.0,74612.0,0.001514]
[1730986979570,0.005,74617.0,74612.0,0.001514]
[1730986981919,0.01,74617.0,74612.0,0.001514]
[1730986982036,0.002,74615.0,74612.0,0.001514]
[1730986982240,0.0852,74613.0,74612.0,0.001514]
[1730986982509,0.0832,74613.0,74612.0,0.001514]
[1730986982666,0.0882,74613.0,74612.0,0.001514]
[1730986983619,0.0902,74613.0,74612.0,0.001514]
[1730986984611,0.0952,74613.0,74612.0,0.001514]
[1730986986906,0.22744102,74613.0,74612.0,0.001514]
[1730986987293,0.22744102,74613.0,74612.0,0.018003]
[1730986987722,0.0932,74613.0,74612.0,0.018003]
[1730986988266,0.0952,74613.0,74612.0,0.018003]
[1730986991338,0.017,74613.0,74612.0,0.018003]
[1730986992559,0.002,74613.0,74612.0,0.018003]
[1730986994218,0.002,74614.0,74612.0,0.018003]
[1730986994475,0.002,74613.0,74612.0,0.018003]
[1730986994681,0.002,74620.0,74612.0,0.14577729]
[1730986994903,0.20032051,74619.0,74612.0,0.14577729]
[1730986995163,0.20032051,74619.0,74612.0,0.14309697]
[1730986995367,0.0823,74627.0,74612.0,0.27533799]
[1730986995576,0.03955652,74644.0,74612.0,0.27533799]
[1730986995577,0.20232051,74630.0,74617.0,0.12509397]
[1730986995783,0.002,74625.0,74622.0,0.12509397]
[1730986995959,0.002,74625.0,74617.0,0.12509397]
[1730986996479,0.002,74626.0,74617.0,0.12509397]
[1730986996843,0.0813,74635.0,74612.0,0.15024402]
[1730986996844,0.20032051,74629.0,74622.0,0.12509397]
[1730986997246,0.002,74628.0,74622.0,0.12509397]
[1730986997411,0.0813,74635.0,74623.0,0.40201]
[1730986997617,0.20022051,74631.0,74623.0,0.40201]
[1730986998167,0.002,74626.0,74623.0,0.40201]
[1730986998396,0.002,74628.0,74623.0,0.40201]
[1730986998594,0.0813,74635.0,74623.0,0.40201]
[1730986998595,0.002,74626.0,74623.0,0.40201]
[1730986999784,0.0813,74635.0,74623.0,0.40201]
[1730986999990,0.002,74638.0,74634.0,0.12509397]
[1730987000159,0.20032051,74648.0,74634.0,0.12509397]
[1730987000160,0.20032051,74637.0,74635.0,0.00267953]
[1730987000362,0.20032051,74637.0,74636.0,0.12509397]
[1730987000734,0.0832,74646.0,74635.0,0.40196]
[1730987000735,0.002,74643.0,74635.0,0.40196]
[1730987000864,0.20232051,74638.0,74635.0,0.40196]
[1730987001068,0.002,74638.0,74635.0,0.40196]
[1730987001265,0.002,74638.0,74635.0,0.40296]
[1730987001762,0.002,74638.0,74635.0,0.40196]
[1730987002355,0.002,74638.0,74635.0,0.40296]
[1730987003494,0.002,74638.0,74635.0,0.40196]
[1730987003669,0.0829,74636.0,74635.0,0.45568832]
[1730987004009,0.0849,74636.0,74635.0,0.45568832]
[1730987004891,0.0849,74636.0,74635.0,0.40196]
[1730987007259,0.1299,74636.0,74635.0,0.40296]
[1730987007428,0.26380302,74636.0,74635.0,0.40296]
[1730987007630,0.26380302,74636.0,74635.0,0.40196]
[1730987007967,0.26380302,74636.0,74635.0,0.40296]
[1730987008167,0.25880302,74636.0,74635.0,0.40296]
[1730987008369,0.26280302,74636.0,74635.0,0.40196]
[1730987008792,0.26680302,74636.0,74635.0,0.40196]
[1730987016451,0.134562,74636.0,74635.0,0.40196]
[1730987016692,0.089562,74636.0,74635.0,0.40196]
[1730987019113,0.089562,74636.0,74635.0,0.402791]
[1730987021014,0.22150302,74636.0,74635.0,0.402791]
[1730987021219,0.27000302,74636.0,74635.0,0.402791]
[1730987023359,0.27004302,74636.0,74635.0,0.402791]
[1730987025754,0.37004302,74636.0,74635.0,0.402791]
[1730987026042,0.37504302,74636.0,74635.0,0.402791]
[1730987032594,0.37504302,74636.0,74635.0,0.402291]
[1730987032829,0.189302,74636.0,74635.0,0.402291]
[1730987033049,0.089302,74636.0,74635.0,0.402291]
[1730987034771,0.089202,74636.0,74635.0,0.402291]
[1730987035450,0.011702,74636.0,74635.0,0.402291]
[1730987035679,0.009702,74636.0,74635.0,0.45729664]
[1730987035899,0.005702,74636.0,74635.0,0.50329664]
[1730987036131,0.006702,74636.0,74635.0,0.52689664]
[1730987036596,0.005702,74636.0,74635.0,0.52689664]
[1730987036836,0.001702,74636.0,74635.0,0.45729664]
[1730987037079,0.001702,74636.0,74635.0,0.45829664]
[1730987037303,0.002702,74636.0,74635.0,0.45829664]
[1730987037549,0.001702,74636.0,74635.0,0.45829664]
[1730987039031,0.001702,74636.0,74635.0,0.53725057]
[1730987039419,0.001702,74636.0,74635.0,0.45829664]
[1730987045810,0.001702,74636.0,74635.0,0.58358371]
[1730987046020,0.001702,74636.0,74635.0,0.62998371]
[1730987046303,0.001702,74636.0,74635.0,0.81382473]
[1730987047796,0.001702,74636.0,74635.0,0.82182473]
[1730987048169,0.001702,74636.0,74635.0,0.82082473]
[1730987048992,4e-05,74650.0,74649.0,0.22128707]
[1730987049221,4e-05,74650.0,74649.0,0.48649395]
[1730987049411,4e-05,74650.0,74649.0,0.88619516]
[1730987051930,0.001664,74657.0,74656.0,0.005]
[1730987052132,0.001624,74657.0,74656.0,0.35772809]
[1730987052403,0.001624,74657.0,74656.0,0.76006809]
[1730987052536,0.001664,74661.0,74657.0,0.023]
[1730987052732,0.20032051,74668.0,74663.0,0.008]
[1730987052960,0.20032051,74668.0,74667.0,0.22088707]
[1730987053159,4e-05,74680.0,74668.0,0.023]
[1730987053363,4e-05,74680.0,74676.0,0.023]
[1730987053615,4e-05,74680.0,74678.0,0.023]
[1730987053983,4e-05,74680.0,74679.0,0.42522]
[1730987054200,0.001662,74706.0,74679.0,0.42522]
[1730987054201,0.20032051,74693.0,74680.0,0.023]
[1730987054399,0.20032051,74693.0,74687.0,0.14828707]
[1730987054743,0.20032051,74693.0,74687.0,0.55046707]
[1730987054949,0.001662,74706.0,74687.0,0.68270809]
[1730987055100,0.003662,74706.0,74687.0,0.68270809]
[1730987055309,0.001662,74706.0,74687.0,0.68270809]
[1730987055902,0.000759,74703.0,74689.0,0.002]
[1730987056176,0.000759,74703.0,74700.0,0.023]
[1730987056388,0.000759,74703.0,74702.0,0.131]
[1730987056554,0.000759,74703.0,74702.0,0.45862809]
[1730987056761,0.000759,74703.0,74702.0,0.86072809]
[1730987058131,0.000759,74703.0,74702.0,0.86057914]
[1730987059283,0.000759,74703.0,74702.0,0.91428261]
[1730987059481,0.001662,74706.0,74705.0,0.008]
[1730987059686,0.001662,74707.0,74706.0,0.108]
[1730987059963,0.001662,74707.0,74706.0,0.64231102]
[1730987060149,0.001662,74707.0,74706.0,0.66531102]
[1730987063160,0.001662,74707.0,74706.0,0.68590015]
[1730987063383,0.001662,74707.0,74706.0,0.67790015]
[1730987063600,0.001662,74707.0,74706.0,0.53431102]
[1730987064772,0.001662,74707.0,74706.0,0.55731102]
[1730987066238,0.001662,74711.0,74707.0,0.023]
[1730987066563,0.001662,74711.0,74703.0,0.008]
[1730987066564,0.001662,74711.0,74710.0,0.14828707]
[1730987066736,0.001662,74711.0,74710.0,0.28052809]
[1730987066944,0.001662,74711.0,74710.0,0.40205]
[1730987067280,0.06962,74720.0,74710.0,0.40205]
[1730987067884,0.002,74719.0,74710.0,0.40205]
[1730987069418,0.06762,74720.0,74710.0,0.40205]
[1730987069419,0.002,74714.0,74710.0,0.40205]
[1730987069624,0.0483,74718.0,74710.0,0.40205]
[1730987069625,0.002,74712.0,74710.0,0.40205]
[1730987070008,0.005,74715.0,74710.0,0.40205]
[1730987070009,0.002,74711.0,74710.0,0.40205]
[1730987070460,0.0834,74711.0,74710.0,0.40205]
[1730987070661,0.1305,74711.0,74710.0,0.40205]
[1730987070882,0.1305,74711.0,74710.0,0.41441245]
[1730987072126,0.1305,74711.0,74710.0,0.43420467]
[1730987073737,0.1305,74711.0,74710.0,0.43425589]
[1730987074104,0.1235,74711.0,74710.0,0.43425589]
[1730987074302,0.1305,74711.0,74710.0,0.43425589]
[1730987074713,0.1255,74711.0,74710.0,0.43425589]
[1730987075118,0.1235,74711.0,74710.0,0.43425589]
[1730987075331,0.0764,74711.0,74710.0,0.43425589]
[1730987075753,0.0784,74711.0,74710.0,0.43425589]
[1730987076762,0.0784,74711.0,74710.0,0.43508589]
[1730987076763,0.0764,74711.0,74710.0,0.43508589]
[1730987077365,0.03658436,74711.0,74710.0,0.45995222]
[1730987077597,0.02888436,74711.0,74710.0,0.45995222]
[1730987077802,0.03388436,74711.0,74710.0,0.45995222]
[1730987078059,0.08128436,74711.0,74710.0,0.45995222]
[1730987078655,0.31852538,74711.0,74710.0,0.45995222]
[1730987078918,0.36977135,74711.0,74710.0,0.45995222]
[1730987079090,0.37477135,74711.0,74710.0,0.38185222]
[1730987079468,0.32852538,74711.0,74710.0,0.38185222]
[1730987080534,0.34752538,74711.0,74710.0,0.38185222]
[1730987081424,0.33752538,74711.0,74710.0,0.38185222]
[1730987085208,0.33052538,74711.0,74710.0,0.38185222]
[1730987085673,0.33752538,74711.0,74710.0,0.38185222]
[1730987085853,0.09828436,74711.0,74710.0,0.38185222]
[1730987086052,0.019,74711.0,74710.0,0.38185222]
[1730987086470,0.005,74719.0,74710.0,0.38185222]
[1730987086653,0.002,74718.0,74714.0,0.12528707]
[1730987086854,0.00166,74720.0,74715.0,0.04468534]
[1730987087054,0.00166,74720.0,74716.0,0.04468534]
[1730987087254,0.00166,74720.0,74717.0,0.52503498]
[1730987087516,0.00166,74720.0,74718.0,0.04461498]
[1730987087753,0.00366,74720.0,74719.0,0.01996221]
[1730987087956,0.00366,74720.0,74719.0,0.50006221]
[1730987088169,0.00166,74720.0,74719.0,0.50006221]
[1730987089528,0.00166,74720.0,74719.0,0.50106221]
[1730987089887,0.00166,74720.0,74719.0,0.50206221]
[1730987090298,0.00166,74720.0,74719.0,0.50006221]
[1730987090731,0.00166,74720.0,74719.0,0.4821]
[1730987091831,0.00166,74720.0,74719.0,0.4811]
[1730987092033,0.00166,74720.0,74719.0,0.4801]
[1730987092244,0.00166,74720.0,74719.0,0.4811]
[1730987092401,0.00166,74720.0,74719.0,0.50106142]
[1730987092760,0.00166,74720.0,74719.0,0.50006142]
[1730987092959,0.00166,74720.0,74719.0,0.50206142]
[1730987093540,0.00166,74720.0,74719.0,0.50406142]
[1730987093719,0.00166,74720.0,74719.0,0.55541682]
[1730987093916,0.00166,74720.0,74719.0,0.55341682]
[1730987095144,0.00166,74720.0,74719.0,0.55541682]
[1730987095394,0.00166,74720.0,74719.0,0.55441682]
[1730987095612,0.00166,74720.0,74719.0,0.5344554]
[1730987095837,0.00166,74720.0,74719.0,0.55441142]
[1730987096994,0.00166,74720.0,74719.0,0.55541142]
[1730987098280,0.00166,74720.0,74719.0,0.55441142]
[1730987098495,0.00166,74720.0,74719.0,0.55541142]
[1730987098856,0.00166,74720.0,74719.0,0.68765244]
[1730987100696,0.00166,74720.0,74719.0,0.55541142]
[1730987101601,0.00166,74720.0,74719.0,0.55531142]
[1730987101818,0.00166,74720.0,74719.0,0.78955244]
[1730987102050,0.000758,74725.0,74724.0,0.12528707]
[1730987102262,0.000758,74725.0,74724.0,0.30315995]
[1730987102503,0.000758,74725.0,74724.0,0.65537704]
[1730987103418,0.000758,74725.0,74724.0,0.65637704]
[1730987103988,0.000758,74725.0,74724.0,0.65537704]
[1730987104749,0.000758,74725.0,74724.0,0.65637704]
[1730987104954,0.000758,74725.0,74724.0,0.65537704]
[1730987105152,0.000758,74725.0,74724.0,0.63237704]
[1730987105365,0.000758,74725.0,74724.0,0.63437704]
[1730987105573,0.000758,74725.0,74724.0,0.50109795]
[1730987105775,0.000758,74725.0,74724.0,0.50009795]
[1730987106112,0.000758,74725.0,74724.0,0.90342604]
[1730987106319,0.000758,74725.0,74724.0,0.95262604]
[1730987106678,0.000758,74725.0,74724.0,0.82633897]
[1730987106885,0.000758,74725.0,74724.0,0.85033897]
[1730987107091,0.000758,74725.0,74724.0,0.97562604]
[1730987107310,0.000758,74725.0,74724.0,0.85033897]
[1730987107772,0.000758,74725.0,74724.0,0.84933897]
[1730987107929,0.000758,74725.0,74724.0,0.97462604]
[1730987108101,0.000758,74725.0,74724.0,0.85033897]
[1730987108303,0.000758,74725.0,74724.0,0.84833897]
[1730987108709,0.000758,74725.0,74724.0,0.80113897]
[1730987108908,0.000758,74725.0,74724.0,0.84852604]
[1730987109120,0.000758,74725.0,74724.0,0.82452604]
[1730987109327,0.000758,74725.0,74724.0,0.82552604]
[1730987109728,0.000758,74725.0,74724.0,0.69328502]
[1730987109932,0.000758,74725.0,74724.0,0.69228502]
[1730987110512,0.000758,74725.0,74724.0,0.56699795]
[1730987110713,0.002758,74725.0,74724.0,0.56699795]
[1730987110919,0.002758,74725.0,74724.0,0.56799795]
[1730987111069,0.002758,74725.0,74724.0,0.56899795]
[1730987111268,0.002758,74725.0,74724.0,0.56799795]
[1730987111592,0.002758,74725.0,74724.0,0.56899795]
[1730987112136,0.002758,74725.0,74724.0,0.56799795]
[1730987112537,0.002758,74725.0,74724.0,0.56899795]
[1730987112936,0.002758,74725.0,74724.0,0.54908]
[1730987113237,0.002758,74725.0,74724.0,0.5690216]
[1730987114991,0.007758,74725.0,74724.0,0.5690216]
[1730987117353,0.27069902,74725.0,74724.0,0.54908]
[1730987117586,0.37769902,74725.0,74724.0,0.54908]
[1730987118048,0.37569902,74725.0,74724.0,0.54908]
[1730987118529,0.38569902,74725.0,74724.0,0.54908]
[1730987118757,0.38569902,74725.0,74724.0,0.54808]
[1730987118989,0.38769902,74725.0,74724.0,0.54708]
[1730987119206,0.38769902,74725.0,74724.0,0.54808]
[1730987119647,0.38569902,74725.0,74724.0,0.54808]
[1730987119874,0.38569902,74725.0,74724.0,0.54708]
[1730987120335,0.38769902,74725.0,74724.0,0.54708]
[1730987122595,0.38569902,74725.0,74724.0,0.54708]
[1730987123061,0.38069902,74725.0,74724.0,0.54708]
[1730987123285,0.37569902,74725.0,74724.0,0.54708]
[1730987123683,0.37069902,74725.0,74724.0,0.54708]
[1730987124031,0.37569902,74725.0,74724.0,0.54708]
[1730987125426,0.236458,74725.0,74724.0,0.54708]
[1730987125629,0.138458,74725.0,74724.0,0.54708]
[1730987126816,0.007758,74725.0,74724.0,0.54708]
[1730987127012,0.13999902,74725.0,74724.0,0.54708]
[1730987128183,0.14199902,74725.0,74724.0,0.54708]
[1730987129093,0.14599902,74725.0,74724.0,0.54708]
[1730987129226,0.14399902,74725.0,74724.0,0.54708]
[1730987130714,0.011758,74725.0,74724.0,0.54708]
[1730987131549,0.009758,74725.0,74724.0,0.54708]
[1730987131704,0.007758,74725.0,74724.0,0.54708]
[1730987133701,0.13999902,74725.0,74724.0,0.54708]
[1730987133887,0.18759902,74725.0,74724.0,0.54708]
[1730987134037,0.27209902,74725.0,74724.0,0.54708]
[1730987134242,0.27009902,74725.0,74724.0,0.54708]
[1730987134832,0.27209902,74725.0,74724.0,0.54708]
[1730987135278,0.27409902,74725.0,74724.0,0.54708]
[1730987135750,0.27209902,74725.0,74724.0,0.54708]
[1730987136113,0.27609902,74725.0,74724.0,0.54708]
[1730987136569,0.27009902,74725.0,74724.0,0.54708]
[1730987136776,0.27209902,74725.0,74724.0,0.54708]
[1730987137164,0.27609902,74725.0,74724.0,0.54708]
[1730987137739,0.27209902,74725.0,74724.0,0.54708]
[1730987138038,0.27909902,74725.0,74724.0,0.54808]
[1730987138221,0.27709902,74725.0,74724.0,0.54808]
[1730987138606,0.28409902,74725.0,74724.0,0.54908]
[1730987140870,0.39409902,74725.0,74724.0,0.54908]
[1730987144016,0.38409902,74725.0,74724.0,0.54908]
[1730987144217,0.37709902,74725.0,74724.0,0.54908]
[1730987145226,0.27709902,74725.0,74724.0,0.54908]
[1730987145407,0.016758,74725.0,74724.0,0.57208]
[1730987145614,0.014758,74725.0,74724.0,0.69736707]
[1730987146224,0.000758,74725.0,74724.0,0.69536707]
[1730987146773,0.000758,74725.0,74724.0,0.70788457]
[1730987146982,0.000758,74725.0,74724.0,0.75318457]
[1730987147187,0.000758,74725.0,74724.0,0.88542559]
[1730987147441,0.000758,74725.0,74724.0,0.94038643]
[1730987147637,0.000758,74725.0,74724.0,0.94138643]
[1730987147789,0.000758,74725.0,74724.0,1.0666735]
[1730987147993,0.000758,74725.0,74724.0,1.02218643]
[1730987148193,0.000758,74725.0,74724.0,1.2554735]
[1730987148392,0.000758,74725.0,74724.0,1.2544735]
[1730987148625,0.000758,74725.0,74724.0,1.2554735]
[1730987149196,0.000758,74725.0,74724.0,1.2544735]
[1730987149853,0.000758,74725.0,74724.0,1.13018643]
[1730987150376,0.000758,74725.0,74724.0,1.2554735]
[1730987150749,0.000758,74725.0,74724.0,1.2564735]
[1730987150928,0.000758,74725.0,74724.0,1.2584735]
[1730987151135,0.000758,74725.0,74724.0,1.2564735]
[1730987151363,0.000758,74732.0,74731.0,0.1092]
[1730987151709,0.000758,74732.0,74731.0,0.96206111]
[1730987151911,0.000758,74732.0,74731.0,0.98188559]
[1730987152361,0.000758,74732.0,74731.0,0.96936809]
[1730987152650,0.000758,74732.0,74731.0,0.98283271]
[1730987152877,0.000758,74732.0,74731.0,0.98283269]
[1730987153380,0.19607851,74746.0,74745.0,0.077]
[1730987153623,0.01745936,74768.0,74748.0,0.023]
[1730987153872,0.01745936,74768.0,74754.0,0.12528707]
[1730987154132,0.0004,74759.0,74754.0,0.28052809]
[1730987154390,0.0004,74759.0,74754.0,0.76054809]
[1730987155314,0.0004,74759.0,74754.0,0.83644809]
[1730987155540,0.0004,74759.0,74754.0,0.94444809]
[1730987156391,0.0004,74759.0,74758.0,0.031]
[1730987156537,0.0004,74759.0,74758.0,0.26591571]
[1730987156740,0.0004,74759.0,74758.0,0.74590571]
[1730987156968,0.0004,74759.0,74758.0,0.74323102]
[1730987157758,0.0004,74759.0,74758.0,0.79797754]
[1730987158007,0.0004,74759.0,74758.0,0.79697754]
[1730987158586,0.0004,74759.0,74758.0,0.79797754]
[1730987159234,0.002064,74759.0,74758.0,0.79697754]
[1730987159409,0.002064,74759.0,74758.0,0.79797754]
[1730987159609,0.002064,74759.0,74758.0,0.79897754]
[1730987159816,0.002064,74759.0,74758.0,0.79797754]
[1730987160164,0.002064,74759.0,74758.0,0.79897754]
[1730987160621,0.002064,74759.0,74758.0,0.79797754]
[1730987160796,0.002064,74759.0,74758.0,0.79897754]
[1730987161094,0.002064,74759.0,74758.0,0.79797754]
[1730987161336,0.01745936,74768.0,74767.0,0.008]
[1730987161507,0.20032051,74773.0,74772.0,0.008]
[1730987161747,0.20032051,74773.0,74772.0,0.26324102]
[1730987161955,0.0004,74779.0,74777.0,0.008]
[1730987162167,0.0004,74779.0,74777.0,0.16324102]
[1730987162360,0.0004,74779.0,74777.0,0.86841809]
[1730987162479,0.0004,74779.0,74777.0,0.73513102]
[1730987162681,0.0004,74779.0,74777.0,0.50289]
[1730987163491,0.0004,74779.0,74777.0,0.63513102]
[1730987164204,0.0004,74779.0,74777.0,0.66288102]
[1730987164401,0.0004,74779.0,74777.0,0.63513102]
[1730987164828,0.0004,74779.0,74777.0,0.73713102]
[1730987165478,0.0004,74779.0,74777.0,0.73613102]
[1730987165866,0.0004,74779.0,74777.0,0.73713102]
[1730987166082,0.0004,74779.0,74777.0,0.81833102]
[1730987166241,0.0004,74779.0,74777.0,0.84306707]
[1730987167307,0.0004,74779.0,74777.0,0.85106707]
[1730987168368,0.0004,74779.0,74777.0,0.89826707]
[1730987168580,0.0004,74779.0,74777.0,0.89515414]
[1730987169039,0.0004,74779.0,74777.0,0.89015414]
[1730987169287,0.0004,74779.0,74777.0,0.86541809]
[1730987170200,0.0004,74779.0,74777.0,0.86341809]
[1730987170591,0.0004,74779.0,74777.0,0.86241809]
[1730987170794,0.0004,74779.0,74777.0,0.86141809]
[1730987170996,0.0004,74779.0,74777.0,0.86441809]
[1730987171533,0.0004,74779.0,74777.0,0.73317707]
[1730987172210,0.0004,74779.0,74777.0,0.75793917]
[1730987173149,0.0004,74779.0,74777.0,0.75593917]
[1730987173666,0.0004,74779.0,74777.0,0.75793917]
[1730987173849,0.0004,74779.0,74777.0,0.75693917]
[1730987174408,0.005758,74786.0,74778.0,0.1]
[1730987174645,0.005758,74786.0,74779.0,0.5046421]
[1730987174762,0.005758,74786.0,74780.0,0.0247621]
[1730987174960,0.005758,74786.0,74779.0,0.47988]
[1730987174961,0.005,74783.0,74781.0,0.0247621]
[1730987175171,0.000758,74786.0,74781.0,0.5046321]
[1730987175172,0.007758,74782.0,74781.0,0.5046321]
[1730987175374,0.084358,74782.0,74781.0,0.5046321]
[1730987176532,0.084358,74782.0,74781.0,0.47987]
[1730987176863,0.084358,74782.0,74781.0,0.50475245]
[1730987177288,0.084358,74782.0,74781.0,0.50675245]
[1730987177647,0.130558,74782.0,74781.0,0.50675245]
[1730987178312,0.130558,74782.0,74781.0,0.50575245]
[1730987178446,0.130558,74782.0,74781.0,0.50475245]
[1730987180282,0.130558,74782.0,74781.0,0.48087]